{"text_format":"1","workbook":"xlsx","n_sheets":3,"sheets":["Konfiguracja"," Druk_Fabryczne"," Druk_Indywidualne"],"not_rendered":{"charts":0,"images":2,"macros":1,"external_links":0,"defined_names":2,"comments":0,"pivot_tables":0},"unopened":[],"bounds":{"document_bytes":16777216,"sheet_cells":100000,"rows_first":2000,"rows_last":500,"rows_between":2000,"halvings":0,"cell_chars":16384,"cell_head_chars":4096},"cells_cut":0,"cells_raw":0,"read":"whole","date_system":"1900"}

{"sheet":"Konfiguracja","index":0,"n_rows":18,"n_cols":25,"rows_kept":18,"cut":false,"hidden":false,"merged":[[1,1,2,23],[10,16,10,18],[10,19,10,21],[11,16,11,18],[11,19,11,21],[7,16,7,21],[8,16,8,18],[8,19,8,21],[9,16,9,18],[9,19,9,21],[7,23,11,23],[3,15,5,15],[3,19,3,23],[7,15,11,15],[3,1,17,13],[3,16,3,18],[4,19,4,23],[16,19,16,21],[7,22,11,22],[5,16,5,18],[4,16,4,18],[5,19,5,23],[6,14,6,23],[13,15,17,15],[17,16,17,18],[17,19,17,21],[13,22,17,22],[13,23,17,23],[14,16,14,18],[14,19,14,21],[15,16,15,18],[15,19,15,21],[16,16,16,18],[13,16,13,21]]}
[null,null,null,null,null,null,null,null,null,null,null,null,null,null,null,null,null,null,null,null,null,null,null,null,"`"]
[null,"Automatyka Załączenia Rezerw ATS-3\n* konfigurator wsuwek * "]
[]
[null,null,null,null,null,null,null,null,null,null,null,null,null,null,null,1,"Obiekt",null,null,"XXX"]
[null,null,null,null,null,null,null,null,null,null,null,null,null,null,null,null,"miesiąc_rok",null,null,"01.08.2019"]
[null,null,null,null,null,null,null,null,null,null,null,null,null,null,null,null,"nr. fabryczny",null,null,190015]
[]
[null,null,null,null,null,null,null,null,null,null,null,null,null,null,null,2,"Opisy wsuwek frontu urządzenia ",null,null,null,null,null,"USTAWIENIA FABRYCZNE","DRUKUJ WSUWKI"]
[null,null,null,null,null,null,null,null,null,null,null,null,null,null,null,null,"Zanik napięcia na sek 1",null,null,"Zanik napięcia na sek 2"]
[null,null,null,null,null,null,null,null,null,null,null,null,null,null,null,null,"Zanik napięcia dopływ TPW1",null,null,"Zanik napięcia dopływ TPW2"]
[null,null,null,null,null,null,null,null,null,null,null,null,null,null,null,null,"SZR nieudany",null,null,"Zablokowany od zab. Wyłącz."]
[null,null,null,null,null,null,null,null,null,null,null,null,null,null,null,null,"SZR zablowany",null,null,"SZR odstawiony"]
[]
[null,null,null,null,null,null,null,null,null,null,null,null,null,null,null,3,"Opisy wsuwek frontu urządzenia ",null,null,null,null,null,"USTAWIENIA INDYWIDUALNE","DRUKUJ WSUWKI"]
[null,null,null,null,null,null,null,null,null,null,null,null,null,null,null,null,"Zanik napięcia na sek 1",null,null,"Zanik napięcia na sek 2"]
[null,null,null,null,null,null,null,null,null,null,null,null,null,null,null,null,"Zanik napięcia dopływ TPW1",null,null,"Zanik napięcia dopływ TPW2"]
[null,null,null,null,null,null,null,null,null,null,null,null,null,null,null,null,"SZR nieudany",null,null,"Zablokowany od zab. Wyłącz."]
[null,null,null,null,null,null,null,null,null,null,null,null,null,null,null,null,"SZR zablowany",null,null,"SZR odstawiony"]

{"sheet":" Druk_Fabryczne","index":1,"n_rows":43,"n_cols":8,"rows_kept":43,"cut":false,"hidden":true,"merged":[]}
[]
[]
[]
[]
[]
[]
[null,null,null,{"$f":"Konfiguracja!Q9","v":"Zanik napięcia na sek 1"},{"$f":"Konfiguracja!T9","v":"Zanik napięcia na sek 2"},null,{"$f":"Konfiguracja!Q9","v":"Zanik napięcia na sek 1"},{"$f":"Konfiguracja!T9","v":"Zanik napięcia na sek 2"}]
[]
[null,null,null,{"$f":"Konfiguracja!Q10","v":"Zanik napięcia dopływ TPW1"},{"$f":"Konfiguracja!T10","v":"Zanik napięcia dopływ TPW2"},null,{"$f":"Konfiguracja!Q10","v":"Zanik napięcia dopływ TPW1"},{"$f":"Konfiguracja!T10","v":"Zanik napięcia dopływ TPW2"}]
[]
[null,null,null,{"$f":"Konfiguracja!Q11","v":"SZR nieudany"},{"$f":"Konfiguracja!T11","v":"Zablokowany od zab. Wyłącz."},null,{"$f":"Konfiguracja!Q11","v":"SZR nieudany"},{"$f":"Konfiguracja!T11","v":"Zablokowany od zab. Wyłącz."}]
[]
[null,null,null,{"$f":"Konfiguracja!Q12","v":"SZR zablowany"},{"$f":"Konfiguracja!T12","v":"SZR odstawiony"},null,{"$f":"Konfiguracja!Q12","v":"SZR zablowany"},{"$f":"Konfiguracja!T12","v":"SZR odstawiony"}]
[]
[]
[]
[null,null,null,{"$f":"Konfiguracja!Q9","v":"Zanik napięcia na sek 1"},{"$f":"Konfiguracja!T9","v":"Zanik napięcia na sek 2"},null,{"$f":"Konfiguracja!Q9","v":"Zanik napięcia na sek 1"},{"$f":"Konfiguracja!T9","v":"Zanik napięcia na sek 2"}]
[]
[null,null,null,{"$f":"Konfiguracja!Q10","v":"Zanik napięcia dopływ TPW1"},{"$f":"Konfiguracja!T10","v":"Zanik napięcia dopływ TPW2"},null,{"$f":"Konfiguracja!Q10","v":"Zanik napięcia dopływ TPW1"},{"$f":"Konfiguracja!T10","v":"Zanik napięcia dopływ TPW2"}]
[]
[null,null,null,{"$f":"Konfiguracja!Q11","v":"SZR nieudany"},{"$f":"Konfiguracja!T11","v":"Zablokowany od zab. Wyłącz."},null,{"$f":"Konfiguracja!Q11","v":"SZR nieudany"},{"$f":"Konfiguracja!T11","v":"Zablokowany od zab. Wyłącz."}]
[]
[null,null,null,{"$f":"Konfiguracja!Q12","v":"SZR zablowany"},{"$f":"Konfiguracja!T12","v":"SZR odstawiony"},null,{"$f":"Konfiguracja!Q12","v":"SZR zablowany"},{"$f":"Konfiguracja!T12","v":"SZR odstawiony"}]
[]
[]
[]
[null,null,null,{"$f":"Konfiguracja!Q9","v":"Zanik napięcia na sek 1"},{"$f":"Konfiguracja!T9","v":"Zanik napięcia na sek 2"},null,{"$f":"Konfiguracja!Q9","v":"Zanik napięcia na sek 1"},{"$f":"Konfiguracja!T9","v":"Zanik napięcia na sek 2"}]
[]
[null,null,null,{"$f":"Konfiguracja!Q10","v":"Zanik napięcia dopływ TPW1"},{"$f":"Konfiguracja!T10","v":"Zanik napięcia dopływ TPW2"},null,{"$f":"Konfiguracja!Q10","v":"Zanik napięcia dopływ TPW1"},{"$f":"Konfiguracja!T10","v":"Zanik napięcia dopływ TPW2"}]
[]
[null,null,null,{"$f":"Konfiguracja!Q11","v":"SZR nieudany"},{"$f":"Konfiguracja!T11","v":"Zablokowany od zab. Wyłącz."},null,{"$f":"Konfiguracja!Q11","v":"SZR nieudany"},{"$f":"Konfiguracja!T11","v":"Zablokowany od zab. Wyłącz."}]
[]
[null,null,null,{"$f":"Konfiguracja!Q12","v":"SZR zablowany"},{"$f":"Konfiguracja!T12","v":"SZR odstawiony"},null,{"$f":"Konfiguracja!Q12","v":"SZR zablowany"},{"$f":"Konfiguracja!T12","v":"SZR odstawiony"}]
[]
[]
[]
[null,null,null,{"$f":"Konfiguracja!Q9","v":"Zanik napięcia na sek 1"},{"$f":"Konfiguracja!T9","v":"Zanik napięcia na sek 2"},null,{"$f":"Konfiguracja!Q9","v":"Zanik napięcia na sek 1"},{"$f":"Konfiguracja!T9","v":"Zanik napięcia na sek 2"}]
[]
[null,null,null,{"$f":"Konfiguracja!Q10","v":"Zanik napięcia dopływ TPW1"},{"$f":"Konfiguracja!T10","v":"Zanik napięcia dopływ TPW2"},null,{"$f":"Konfiguracja!Q10","v":"Zanik napięcia dopływ TPW1"},{"$f":"Konfiguracja!T10","v":"Zanik napięcia dopływ TPW2"}]
[]
[null,null,null,{"$f":"Konfiguracja!Q11","v":"SZR nieudany"},{"$f":"Konfiguracja!T11","v":"Zablokowany od zab. Wyłącz."},null,{"$f":"Konfiguracja!Q11","v":"SZR nieudany"},{"$f":"Konfiguracja!T11","v":"Zablokowany od zab. Wyłącz."}]
[]
[null,null,null,{"$f":"Konfiguracja!Q12","v":"SZR zablowany"},{"$f":"Konfiguracja!T12","v":"SZR odstawiony"},null,{"$f":"Konfiguracja!Q12","v":"SZR zablowany"},{"$f":"Konfiguracja!T12","v":"SZR odstawiony"}]

{"sheet":" Druk_Indywidualne","index":2,"n_rows":43,"n_cols":8,"rows_kept":43,"cut":false,"hidden":true,"merged":[]}
[]
[]
[]
[]
[]
[]
[null,null,null,{"$f":"Konfiguracja!Q15","v":"Zanik napięcia na sek 1"},{"$f":"Konfiguracja!T15","v":"Zanik napięcia na sek 2"},null,{"$f":"Konfiguracja!Q15","v":"Zanik napięcia na sek 1"},{"$f":"Konfiguracja!T15","v":"Zanik napięcia na sek 2"}]
[]
[null,null,null,{"$f":"Konfiguracja!Q16","v":"Zanik napięcia dopływ TPW1"},{"$f":"Konfiguracja!T16","v":"Zanik napięcia dopływ TPW2"},null,{"$f":"Konfiguracja!Q16","v":"Zanik napięcia dopływ TPW1"},{"$f":"Konfiguracja!T16","v":"Zanik napięcia dopływ TPW2"}]
[]
[null,null,null,{"$f":"Konfiguracja!Q17","v":"SZR nieudany"},{"$f":"Konfiguracja!T17","v":"Zablokowany od zab. Wyłącz."},null,{"$f":"Konfiguracja!Q17","v":"SZR nieudany"},{"$f":"Konfiguracja!T17","v":"Zablokowany od zab. Wyłącz."}]
[]
[null,null,null,{"$f":"Konfiguracja!Q18","v":"SZR zablowany"},{"$f":"Konfiguracja!T18","v":"SZR odstawiony"},null,{"$f":"Konfiguracja!Q18","v":"SZR zablowany"},{"$f":"Konfiguracja!T18","v":"SZR odstawiony"}]
[]
[]
[]
[null,null,null,{"$f":"Konfiguracja!Q15","v":"Zanik napięcia na sek 1"},{"$f":"Konfiguracja!T15","v":"Zanik napięcia na sek 2"},null,{"$f":"Konfiguracja!Q15","v":"Zanik napięcia na sek 1"},{"$f":"Konfiguracja!T15","v":"Zanik napięcia na sek 2"}]
[]
[null,null,null,{"$f":"Konfiguracja!Q16","v":"Zanik napięcia dopływ TPW1"},{"$f":"Konfiguracja!T16","v":"Zanik napięcia dopływ TPW2"},null,{"$f":"Konfiguracja!Q16","v":"Zanik napięcia dopływ TPW1"},{"$f":"Konfiguracja!T16","v":"Zanik napięcia dopływ TPW2"}]
[]
[null,null,null,{"$f":"Konfiguracja!Q17","v":"SZR nieudany"},{"$f":"Konfiguracja!T17","v":"Zablokowany od zab. Wyłącz."},null,{"$f":"Konfiguracja!Q17","v":"SZR nieudany"},{"$f":"Konfiguracja!T17","v":"Zablokowany od zab. Wyłącz."}]
[]
[null,null,null,{"$f":"Konfiguracja!Q18","v":"SZR zablowany"},{"$f":"Konfiguracja!T18","v":"SZR odstawiony"},null,{"$f":"Konfiguracja!Q18","v":"SZR zablowany"},{"$f":"Konfiguracja!T18","v":"SZR odstawiony"}]
[]
[]
[]
[null,null,null,{"$f":"Konfiguracja!Q15","v":"Zanik napięcia na sek 1"},{"$f":"Konfiguracja!T15","v":"Zanik napięcia na sek 2"},null,{"$f":"Konfiguracja!Q15","v":"Zanik napięcia na sek 1"},{"$f":"Konfiguracja!T15","v":"Zanik napięcia na sek 2"}]
[]
[null,null,null,{"$f":"Konfiguracja!Q16","v":"Zanik napięcia dopływ TPW1"},{"$f":"Konfiguracja!T16","v":"Zanik napięcia dopływ TPW2"},null,{"$f":"Konfiguracja!Q16","v":"Zanik napięcia dopływ TPW1"},{"$f":"Konfiguracja!T16","v":"Zanik napięcia dopływ TPW2"}]
[]
[null,null,null,{"$f":"Konfiguracja!Q17","v":"SZR nieudany"},{"$f":"Konfiguracja!T17","v":"Zablokowany od zab. Wyłącz."},null,{"$f":"Konfiguracja!Q17","v":"SZR nieudany"},{"$f":"Konfiguracja!T17","v":"Zablokowany od zab. Wyłącz."}]
[]
[null,null,null,{"$f":"Konfiguracja!Q18","v":"SZR zablowany"},{"$f":"Konfiguracja!T18","v":"SZR odstawiony"},null,{"$f":"Konfiguracja!Q18","v":"SZR zablowany"},{"$f":"Konfiguracja!T18","v":"SZR odstawiony"}]
[]
[]
[]
[null,null,null,{"$f":"Konfiguracja!Q15","v":"Zanik napięcia na sek 1"},{"$f":"Konfiguracja!T15","v":"Zanik napięcia na sek 2"},null,{"$f":"Konfiguracja!Q15","v":"Zanik napięcia na sek 1"},{"$f":"Konfiguracja!T15","v":"Zanik napięcia na sek 2"}]
[]
[null,null,null,{"$f":"Konfiguracja!Q16","v":"Zanik napięcia dopływ TPW1"},{"$f":"Konfiguracja!T16","v":"Zanik napięcia dopływ TPW2"},null,{"$f":"Konfiguracja!Q16","v":"Zanik napięcia dopływ TPW1"},{"$f":"Konfiguracja!T16","v":"Zanik napięcia dopływ TPW2"}]
[]
[null,null,null,{"$f":"Konfiguracja!Q17","v":"SZR nieudany"},{"$f":"Konfiguracja!T17","v":"Zablokowany od zab. Wyłącz."},null,{"$f":"Konfiguracja!Q17","v":"SZR nieudany"},{"$f":"Konfiguracja!T17","v":"Zablokowany od zab. Wyłącz."}]
[]
[null,null,null,{"$f":"Konfiguracja!Q18","v":"SZR zablowany"},{"$f":"Konfiguracja!T18","v":"SZR odstawiony"},null,{"$f":"Konfiguracja!Q18","v":"SZR zablowany"},{"$f":"Konfiguracja!T18","v":"SZR odstawiony"}]